bitfinex/quotes_BTCUSD_20250718
["timestamp","ask_amount","ask_price","bid_price","bid_amount"]
[1752844687450,0.58310934,118900.0,118890.0,0.0004]
[1752844687451,0.65641786,118900.0,118890.0,0.0004]
[1752844687702,0.84475547,118900.0,118890.0,0.0004]
[1752844688385,0.33930934,118900.0,118890.0,0.17703385]
[1752844688599,0.33930934,118900.0,118890.0,0.18544477]
[1752844688823,0.30770892,118900.0,118890.0,0.20326626]
[1752844689043,0.31611927,118900.0,118890.0,0.19485555]
[1752844689263,0.31611927,118900.0,118890.0,0.21891704]
[1752844689264,0.11591042,118900.0,118890.0,0.21891704]
[1752844689482,0.29252934,118900.0,118890.0,0.21891704]
[1752844689697,0.29452927,118900.0,118890.0,0.21891711]
[1752844689923,0.29452927,118900.0,118890.0,0.2083964]
[1752844690144,0.30293969,118900.0,118890.0,0.2083964]
[1752844690398,0.10950021,118900.0,118890.0,0.21680704]
[1752844690885,0.14379031,118900.0,118890.0,0.21680704]
[1752844690887,0.15220052,118900.0,118890.0,0.21680704]
[1752844691103,0.13338024,118900.0,118890.0,0.21780704]
[1752844691326,0.10009014,118900.0,118890.0,0.21780704]
[1752844691549,0.10850007,118900.0,118890.0,0.21780704]
[1752844691770,0.11691014,118900.0,118890.0,0.21680704]
[1752844692037,0.11891014,118900.0,118890.0,0.21680704]
[1752844692270,0.11050007,118900.0,118890.0,0.21680704]
[1752844692502,0.09368028,118900.0,118890.0,0.21680704]
[1752844692727,0.10209007,118900.0,118890.0,0.21680704]
[1752844692950,0.18354197,118900.0,118890.0,0.21680704]
[1752844693172,0.20825922,118900.0,118890.0,0.21680704]
[1752844693394,0.38487814,118900.0,118890.0,0.2083964]
[1752844693615,0.11839697,118900.0,118890.0,0.22521775]
[1752844693840,0.24711704,118900.0,118890.0,0.22732775]
[1752844694069,0.2555269,118900.0,118890.0,0.22732775]
[1752844694298,0.26393683,118900.0,118890.0,0.22732775]
[1752844695000,0.28394718,118900.0,118890.0,0.22732775]
[1752844695214,0.28394711,118900.0,118890.0,0.22732775]
[1752844695434,0.51924415,118900.0,118890.0,0.2083964]
[1752844695649,0.51924415,118900.0,118890.0,0.21680711]
[1752844696099,0.51083422,118900.0,118890.0,0.19998562]
[1752844696322,0.51083422,118900.0,118890.0,0.20839647]
[1752844696546,0.50242415,118900.0,118890.0,0.19998576]
[1752844696965,0.53442415,118900.0,118890.0,0.21680767]
[1752844697194,0.53442415,118900.0,118890.0,0.22521845]
[1752844697421,0.53442415,118900.0,118890.0,0.21680732]
[1752844697682,0.54283457,118900.0,118890.0,0.22521803]
[1752844697914,0.54283457,118900.0,118890.0,0.21680732]
[1752844698135,0.50242415,118900.0,118890.0,0.22521796]
[1752844698348,0.25871746,118900.0,118890.0,0.22521796]
[1752844698633,0.26712774,118900.0,118890.0,0.22521796]
[1752844699063,0.44374666,118900.0,118890.0,0.21680732]
[1752844699739,0.45692645,118900.0,118890.0,0.1915747]
[1752844699951,0.45692645,118900.0,118890.0,0.19157463]
[1752844700128,0.54268607,118900.0,118890.0,0.19157463]
[1752844700344,0.53427579,118900.0,118890.0,0.19157463]
[1752844700551,0.55746544,118900.0,118890.0,0.0004]
[1752844700702,0.98960305,118900.0,118890.0,0.0004]
[1752844702394,0.55746544,118900.0,118890.0,0.0004]
[1752844702595,1.57340305,118900.0,118890.0,0.0004]
[1752844704384,1.16652144,118900.0,118890.0,0.0004]
[1752844704593,1.59865905,118900.0,118890.0,0.0004]
[1752844704806,1.51289943,118900.0,118890.0,0.0004]
[1752844705223,1.08076182,118900.0,118890.0,0.0004]
[1752844705441,1.04916182,118900.0,118890.0,0.17703378]
[1752844705653,1.04888182,118900.0,118890.0,0.18544477]
[1752844705863,0.72745374,118900.0,118890.0,0.2022664]
[1752844706077,1.04411224,118900.0,118890.0,0.21067704]
[1752844706365,1.07451224,118900.0,118890.0,0.18544477]
[1752844706580,1.14008706,118900.0,118890.0,0.18544477]
[1752844707022,1.13167713,118900.0,118890.0,0.17703378]
[1752844707239,1.12326699,118900.0,118890.0,0.0004]
[1752844707483,1.5554046,118900.0,118890.0,0.0004]
[1752844707696,1.5857046,118900.0,118890.0,0.0004]
[1752844708683,1.5857046,118900.0,118890.0,0.17703385]
[1752844708897,1.15356699,118900.0,118890.0,0.17703385]
[1752844709573,1.12326699,118900.0,118890.0,0.0004]
[1752844710222,1.15466699,118900.0,118890.0,0.0004]
[1752844710430,1.5868046,118900.0,118890.0,0.0004]
[1752844713453,1.15466699,118900.0,118890.0,0.0004]
[1752844713657,1.5868046,118900.0,118890.0,0.0004]
[1752844716637,1.15466699,118900.0,118890.0,0.0004]
[1752844716861,1.5868046,118900.0,118890.0,0.0004]
[1752844722390,1.57890763,118900.0,118890.0,0.0004]
[1752844725744,1.58717058,118900.0,118890.0,0.0004]
[1752844725973,1.15503297,118900.0,118890.0,0.0004]
[1752844726200,1.58717058,118900.0,118890.0,0.0004]
[1752844729912,1.15503297,118900.0,118890.0,0.0004]
[1752844730125,1.58717058,118900.0,118890.0,0.0004]
[1752844730340,1.15503297,118900.0,118890.0,0.0004]
[1752844730573,1.58717058,118900.0,118890.0,0.0004]
[1752844734407,1.77229058,118900.0,118890.0,0.0004]
[1752844736916,1.71049058,118900.0,118890.0,0.0004]
[1752844737233,1.10574353,118900.0,118890.0,0.21145371]
[1752844737447,1.10574353,118900.0,118890.0,0.24445371]
[1752844737888,1.10052339,118900.0,118890.0,0.03482]
[1752844738120,1.52425065,118900.0,118890.0,0.00242]
[1752844738572,1.52425065,118900.0,118890.0,0.0004]
[1752844742135,1.09211304,118900.0,118890.0,0.0004]
[1752844742374,1.52425065,118900.0,118890.0,0.0004]
[1752844744788,1.52425065,118900.0,118890.0,0.16862272]
[1752844744996,1.52425065,118900.0,118890.0,0.17703385]
[1752844745421,1.09211304,118900.0,118890.0,0.00881113]
[1752844745590,1.52425065,118900.0,118890.0,0.0004]
[1752844746084,1.52863326,118900.0,118890.0,0.0004]
[1752844746744,1.46305844,118900.0,118890.0,0.0004]
[1752844746952,1.46309844,118900.0,118890.0,0.0004]
[1752844749018,1.03096083,118900.0,118890.0,0.0004]
[1752844749447,1.46309844,118900.0,118890.0,0.0004]
[1752844753063,1.49319844,118900.0,118890.0,0.0004]
[1752844753289,1.14682045,118900.0,118890.0,0.0004]
[1752844753490,1.57895806,118900.0,118890.0,0.0004]
[1752844754131,1.14682045,118900.0,118890.0,0.0004]
[1752844754566,1.46309844,118900.0,118890.0,0.0004]
[1752844756032,1.49509844,118900.0,118890.0,0.0004]
[1752844756862,1.46309844,118900.0,118890.0,0.0004]
[1752844757065,1.49609844,118900.0,118890.0,0.0004]
[1752844757488,1.46309844,118900.0,118890.0,0.0004]
[1752844757701,1.54885806,118900.0,118890.0,0.0004]
[1752844757905,1.11672045,118900.0,118890.0,0.0004]
[1752844758114,1.46309844,118900.0,118890.0,0.0004]
[1752844761312,1.03096083,118900.0,118890.0,0.0004]
[1752844761698,1.02657822,118900.0,118890.0,0.0004]
[1752844761931,0.70784923,118900.0,118890.0,0.24051385]
[1752844762150,0.35760628,118900.0,118890.0,0.71550486]
[1752844762364,0.49640628,118900.0,118890.0,0.71550486]
[1752844763490,0.22635028,118900.0,118890.0,0.71550486]
[1752844763747,0.22435028,118900.0,118890.0,0.71550486]
[1752844764193,0.08555028,118900.0,118890.0,0.71550486]
[1752844764418,0.13884,118900.0,118890.0,0.71550486]
[1752844765127,0.0004965,118910.0,118900.0,0.27287984]
[1752844765364,0.0004965,118910.0,118900.0,0.70699745]
[1752844765365,0.1392965,118910.0,118900.0,0.70699745]
[1752844765594,0.1392965,118910.0,118900.0,0.71813803]
[1752844765813,0.1392965,118910.0,118900.0,0.80389765]
[1752844766280,0.0004965,118910.0,118900.0,0.80389765]
[1752844766515,1e-08,118910.0,118900.0,1.32154554]
[1752844766737,0.003,118930.0,118900.0,1.32154554]
[1752844766738,0.14176,118930.0,118920.0,0.27244731]
[1752844766981,0.14176,118930.0,118920.0,0.27455243]
[1752844767201,0.14176,118930.0,118920.0,0.72512212]
[1752844767656,0.003,118930.0,118920.0,0.72512212]
[1752844767877,0.003,118930.0,118920.0,1.15725973]
[1752844768088,0.003,118930.0,118920.0,1.16125973]
[1752844768259,0.003,118930.0,118920.0,1.16425973]
[1752844770993,1e-08,118930.0,118920.0,1.50425973]
[1752844772370,1e-08,118930.0,118920.0,1.58277001]
[1752844772797,1e-08,118930.0,118920.0,1.58977001]
[1752844773211,4.001e-05,118930.0,118920.0,1.58977001]
[1752844774792,4.001e-05,118930.0,118920.0,1.58277001]
[1752844774989,4.001e-05,118930.0,118920.0,1.58577001]
[1752844775226,4.001e-05,118930.0,118920.0,1.59077001]
[1752844775438,4.001e-05,118930.0,118920.0,1.72945001]
[1752844775652,4.001e-05,118930.0,118920.0,1.59077001]
[1752844775867,4.001e-05,118930.0,118920.0,1.72645001]
[1752844776434,4.001e-05,118930.0,118920.0,1.73145001]
[1752844777107,4.001e-05,118930.0,118920.0,1.2993124]
[1752844777334,4.001e-05,118930.0,118920.0,1.64593973]
[1752844777583,4.001e-05,118930.0,118920.0,1.19926127]
[1752844777822,4.001e-05,118930.0,118920.0,1.07512212]
[1752844779918,4.001e-05,118930.0,118920.0,1.50725973]
[1752844780437,4.001e-05,118930.0,118920.0,1.07512212]
[1752844780884,4.001e-05,118930.0,118920.0,1.50725973]
[1752844781591,4.001e-05,118930.0,118920.0,1.50225973]
[1752844781793,4.001e-05,118930.0,118920.0,1.49725973]
[1752844782215,4.001e-05,118930.0,118920.0,1.50525973]
[1752844782433,4.001e-05,118930.0,118920.0,1.52186111]
[1752844783865,4.001e-05,118930.0,118920.0,0.30223381]
[1752844784077,4.001e-05,118930.0,118920.0,0.70117142]
[1752844784280,4.001e-05,118930.0,118920.0,0.26903381]
[1752844784486,4.001e-05,118930.0,118920.0,0.70117142]
[1752844785042,4.001e-05,118930.0,118920.0,0.69317142]
[1752844785464,4.001e-05,118930.0,118920.0,0.69817142]
[1752844785678,0.00509001,118930.0,118920.0,0.66181142]
[1752844786316,0.00509001,118930.0,118920.0,0.74757104]
[1752844786547,0.00509001,118930.0,118920.0,0.65781142]
[1752844786897,0.00509001,118930.0,118920.0,0.65981142]
[1752844787313,0.00509001,118930.0,118920.0,0.65881142]
[1752844787792,0.00509001,118930.0,118920.0,0.66079142]
[1752844787960,0.00211001,118930.0,118920.0,0.66079142]
[1752844788550,0.14071001,118930.0,118920.0,0.66079142]
[1752844788698,0.14071001,118930.0,118920.0,0.66387142]
[1752844789497,0.14171001,118930.0,118920.0,0.66387142]
[1752844790621,0.14171001,118930.0,118920.0,0.66079142]
[1752844791044,0.14171001,118930.0,118920.0,0.22865381]
[1752844791240,0.14171001,118930.0,118920.0,0.66079142]
[1752844792223,0.14171001,118930.0,118920.0,0.66403142]
[1752844792441,0.00311001,118930.0,118920.0,0.66403142]
[1752844792666,0.00104001,118930.0,118920.0,0.72543142]
[1752844792882,0.13964001,118930.0,118920.0,0.72543142]
[1752844794345,0.13964001,118930.0,118920.0,0.69453142]
[1752844796372,0.13964001,118930.0,118920.0,0.69118781]
[1752844797119,0.13964001,118930.0,118920.0,0.72348781]
[1752844801656,0.13964001,118930.0,118920.0,0.69118781]
[1752844801885,0.23026029,118930.0,118920.0,0.65744781]
[1752844803453,0.23026029,118930.0,118920.0,0.2253102]
[1752844803675,0.23026029,118930.0,118920.0,0.65744781]
[1752844804308,0.22719029,118930.0,118920.0,0.65744781]
[1752844804924,0.22719029,118930.0,118920.0,0.66068781]
[1752844805804,0.22719029,118930.0,118920.0,0.65744781]
[1752844806007,0.23026029,118930.0,118920.0,0.65744781]
[1752844806422,0.23026029,118930.0,118920.0,0.65546781]
[1752844807505,0.23026029,118930.0,118920.0,0.65748781]
[1752844807726,0.23830303,118930.0,118920.0,0.65612391]
[1752844808160,0.27140303,118930.0,118920.0,0.65410391]
[1752844808383,0.23830303,118930.0,118920.0,0.65410391]
[1752844809038,0.23026029,118930.0,118920.0,0.65410391]
[1752844809250,0.23026029,118930.0,118920.0,0.65612391]
[1752844809674,0.22719029,118930.0,118920.0,0.65612391]
[1752844810917,0.22719029,118930.0,118920.0,0.65936391]
[1752844811704,0.22719029,118930.0,118920.0,0.65612391]
[1752844812428,0.25854053,118930.0,118920.0,0.65612391]
[1752844813053,0.22719029,118930.0,118920.0,0.65612391]
[1752844817407,0.23026029,118930.0,118920.0,0.65410391]
[1752844817633,0.29176029,118930.0,118920.0,0.65410391]
[1752844818065,0.3001681,118930.0,118920.0,0.65410391]
[1752844818274,0.29176029,118930.0,118920.0,0.65410391]
[1752844818513,0.26076029,118930.0,118920.0,0.65410391]
[1752844819596,0.3002681,118930.0,118920.0,0.2219663]
[1752844819816,0.30026803,118930.0,118920.0,0.65410391]
[1752844820407,0.29186029,118930.0,118920.0,0.65410391]
[1752844820821,0.30026803,118930.0,118920.0,0.65410391]
[1752844821006,0.29186029,118930.0,118920.0,0.65410391]
[1752844821610,0.30026796,118930.0,118920.0,0.2219663]
[1752844822012,0.30026803,118930.0,118920.0,0.65410391]
[1752844822218,0.29186029,118930.0,118920.0,0.65410391]
[1752844822394,0.26076029,118930.0,118920.0,0.65410391]
[1752844823003,0.22719029,118930.0,118920.0,0.65626391]
[1752844823480,0.22719029,118930.0,118920.0,0.65924391]
[1752844823971,0.00104001,118930.0,118920.0,1.15648152]
[1752844824136,0.13944001,118930.0,118920.0,1.24224114]
[1752844824385,0.13944001,118930.0,118920.0,1.15648152]
[1752844824826,0.13944001,118930.0,118920.0,0.72434391]
[1752844825141,0.14157001,118930.0,118920.0,0.65626391]
[1752844825340,0.14072918,118930.0,118920.0,0.65626391]
[1752844827294,0.13859918,118930.0,118920.0,0.72454391]
[1752844828377,0.13859918,118930.0,118920.0,0.69194391]
[1752844828867,0.13859918,118930.0,118920.0,0.2598063]
[1752844829082,0.13859918,118930.0,118920.0,0.69194391]
[1752844829923,0.26006946,118930.0,118920.0,0.65410391]
[1752844830149,0.26847713,118930.0,118920.0,0.65410391]
[1752844830360,0.30057713,118930.0,118920.0,0.65410391]
[1752844830565,0.37519634,118930.0,118920.0,0.20372445]
[1752844830764,0.54336248,118930.0,118920.0,0.20372459]
[1752844830917,0.51813898,118930.0,118920.0,0.0187265]
[1752844831519,0.58525026,118930.0,118920.0,0.0187265]
[1752844831726,1.35738787,118930.0,118920.0,0.0187265]
[1752844831947,1.35718869,118930.0,118920.0,0.0187265]
[1752844832383,1.36218869,118930.0,118920.0,0.0187265]
[1752844832587,0.92905108,118930.0,118920.0,0.0187265]
[1752844832791,1.44118869,118930.0,118920.0,0.0187265]
[1752844833575,1.43618869,118930.0,118920.0,0.0167265]
[1752844833971,1.46843669,118930.0,118920.0,0.0167265]
[1752844834403,1.46743669,118930.0,118920.0,0.0167265]
[1752844834855,1.40032541,118930.0,118920.0,0.0167265]
[1752844835091,1.39932541,118930.0,118920.0,0.0167265]
[1752844835560,1.40132541,118930.0,118920.0,0.0167265]
[1752844835778,1.43244053,118930.0,118920.0,0.0167265]
[1752844837332,1.43682314,118930.0,118920.0,0.0167265]
[1752844838869,1.91896075,118930.0,118920.0,0.0167265]
[1752844840734,1.88784563,118930.0,118920.0,1e-08]
[1752844840950,0.18501337,118910.0,118900.0,0.003]
[1752844841152,1.16851189,118910.0,118900.0,0.00312591]
[1752844841362,0.73950428,118910.0,118900.0,0.00312591]
[1752844841698,1.17164189,118910.0,118900.0,0.00312591]
[1752844841995,1.22504189,118910.0,118900.0,0.00312591]
[1752844842381,1.56504189,118910.0,118900.0,0.00312591]
[1752844842982,1.57404189,118910.0,118900.0,0.00312591]
[1752844843186,1.60515701,118910.0,118900.0,0.00312591]
[1752844843384,0.66263397,118900.0,118890.0,0.0004]
[1752844843595,1.27130148,118900.0,118890.0,0.0008965]
[1752844844470,1.27030148,118900.0,118890.0,0.0008965]
[1752844844830,1.29944777,118900.0,118890.0,0.0008965]
[1752844845038,1.30144777,118900.0,118890.0,0.0008965]
[1752844845460,1.30583038,118900.0,118890.0,0.0008965]
[1752844847001,1.30483038,118900.0,118890.0,0.0008965]
[1752844848303,1.30383038,118900.0,118890.0,0.0008965]
[1752844849800,1.30283038,118900.0,118890.0,0.0008965]
[1752844850439,0.87069277,118900.0,118890.0,0.0008965]
[1752844850650,1.30283038,118900.0,118890.0,0.0008965]
[1752844852416,1.77448409,118900.0,118890.0,0.0008965]
[1752844853269,1.91272409,118900.0,118890.0,0.0008965]
[1752844854126,1.44100817,118900.0,118890.0,1e-08]
[1752844854364,1.93768663,118900.0,118890.0,1e-08]
[1752844854578,1.96622108,118900.0,118890.0,1e-08]
[1752844855006,1.96522108,118900.0,118890.0,1e-08]
[1752844855190,1.96122108,118900.0,118890.0,1e-08]
[1752844855443,0.24117456,118890.0,118880.0,1e-08]
[1752844855656,1.79954587,118890.0,118880.0,1e-08]
[1752844855865,0.63917562,118870.0,118860.0,0.00095557]
[1752844856086,1.29612351,118870.0,118860.0,0.00095557]
[1752844856312,1.35897308,118870.0,118860.0,1e-08]
[1752844856540,0.24840677,118850.0,118840.0,0.01044097]
[1752844856755,1.14086981,118850.0,118840.0,0.01044097]
[1752844857008,1.17198493,118850.0,118840.0,0.01044097]
[1752844857238,1.17198493,118850.0,118840.0,0.64104524]
[1752844857239,0.27269028,118850.0,118840.0,0.64104524]
[1752844857455,0.77413628,118850.0,118840.0,0.70544524]
[1752844857671,0.27063028,118850.0,118840.0,0.70544524]
[1752844857897,0.18561605,118850.0,118840.0,0.71998609]
[1752844858119,0.01761085,118890.0,118860.0,0.25790409]
[1752844858120,0.025262,118870.0,118860.0,0.25790409]
[1752844858361,0.05332563,118890.0,118880.0,0.2494602]
[1752844858568,0.36819963,118890.0,118880.0,0.24300864]
[1752844858752,0.44614856,118890.0,118880.0,0.03416]
[1752844859003,0.17664871,118880.0,118870.0,0.23562103]
[1752844859228,0.33200925,118880.0,118870.0,0.21379343]
[1752844859439,0.34042081,118880.0,118870.0,0.22220576]
[1752844859646,0.33200925,118880.0,118870.0,0.20538103]
[1752844859851,0.32359762,118880.0,118870.0,0.21082358]
[1752844860098,0.32565762,118880.0,118870.0,0.03416]
[1752844860336,0.51666358,118870.0,118860.0,0.03232618]
[1752844860594,0.8098978,118870.0,118860.0,0.03232618]
[1752844860797,0.8098978,118870.0,118860.0,0.00012618]
[1752844862270,1.24203541,118870.0,118860.0,0.00012618]
[1752844862489,1.30323541,118870.0,118860.0,0.00012618]
[1752844862709,1.30323541,118870.0,118860.0,0.00312618]
[1752844862946,1.32850041,118870.0,118860.0,0.00312618]
[1752844863164,1.50127242,118870.0,118860.0,0.00312618]
[1752844863364,2.07807242,118870.0,118860.0,0.00312618]
[1752844863784,2.04953797,118870.0,118860.0,0.00312618]
[1752844864005,1.95530041,118870.0,118860.0,0.00012618]
[1752844865885,1.95530041,118870.0,118860.0,0.00212618]
[1752844866289,1.95530041,118870.0,118860.0,0.00412618]
[1752844866662,1.95530041,118870.0,118860.0,0.00012618]
[1752844866899,1.95630041,118870.0,118860.0,0.00012618]
[1752844867098,1.81806041,118870.0,118860.0,0.00012618]
[1752844867301,1.95626041,118870.0,118860.0,0.00012618]
[1752844869061,1.95726041,118870.0,118860.0,0.00012618]
[1752844869443,1.98218996,118870.0,118860.0,0.00012618]
[1752844872011,1.55005235,118870.0,118860.0,0.00012618]
[1752844872443,1.98218996,118870.0,118860.0,0.00012618]
[1752844873064,1.55001235,118870.0,118860.0,0.00012618]
[1752844873264,1.98214996,118870.0,118860.0,0.00012618]
[1752844873441,1.79398996,118870.0,118860.0,0.00012618]
[1752844873645,1.93214996,118870.0,118860.0,0.00012618]
[1752844880935,1.50001235,118870.0,118860.0,0.00012618]
[1752844881148,1.93214996,118870.0,118860.0,0.00012618]
[1752844881569,1.50001235,118870.0,118860.0,0.00012618]
[1752844881772,1.93214996,118870.0,118860.0,0.00012618]
[1752844882189,1.87094996,118870.0,118860.0,0.00012618]
[1752844883496,1.90124996,118870.0,118860.0,0.00012618]
[1752844883709,1.93394996,118870.0,118860.0,0.00012618]
[1752844884743,2.11914996,118870.0,118860.0,0.00012618]
[1752844884944,2.08644996,118870.0,118860.0,0.00012618]
[1752844885591,2.05614996,118870.0,118860.0,0.00012618]
[1752844887863,1.62401235,118870.0,118860.0,0.00012618]
[1752844888036,2.05614996,118870.0,118860.0,0.00012618]
[1752844889694,2.05614996,118870.0,118860.0,0.06864618]
[1752844889695,1.07636841,118870.0,118860.0,0.06864618]
[1752844889946,1.07636841,118870.0,118860.0,0.23691136]
[1752844889947,1.19785119,118870.0,118860.0,0.23691136]
[1752844890157,0.70105119,118870.0,118860.0,0.06864618]
[1752844890369,0.69263886,118870.0,118860.0,0.06864618]
[1752844890801,1.03263886,118870.0,118860.0,0.06864618]
[1752844891021,1.11839848,118870.0,118860.0,0.06864618]
[1752844895348,1.55053609,118870.0,118860.0,0.06864618]
[1752844895565,1.58295237,118870.0,118860.0,0.00012618]
[1752844896380,1.58592609,118870.0,118860.0,0.00012618]
[1752844896975,1.61882609,118870.0,118860.0,0.00012618]
[1752844897182,1.55574609,118870.0,118860.0,0.00012618]
[1752844898797,1.61684609,118870.0,118860.0,0.00012618]
[1752844899373,1.66684609,118870.0,118860.0,0.00012618]
[1752844899577,1.69397237,118870.0,118860.0,0.00012618]
[1752844900153,1.66684609,118870.0,118860.0,0.00012618]
[1752844901370,1.66589308,118870.0,118860.0,0.00012618]
[1752844902930,1.23375547,118870.0,118860.0,0.00012618]
[1752844903133,1.66589308,118870.0,118860.0,0.00012618]
[1752844904876,1.23375547,118870.0,118860.0,0.00012618]
[1752844905080,1.66589308,118870.0,118860.0,0.00012618]
[1752844906598,1.04583547,118870.0,118860.0,0.00012618]
[1752844906803,1.60471308,118870.0,118860.0,0.00012618]
[1752844907004,1.46895346,118870.0,118860.0,0.00012618]
[1752844907258,1.46581346,118870.0,118860.0,0.03215618]
[1752844907707,1.46895346,118870.0,118860.0,0.00012618]
[1752844907924,1.50015346,118870.0,118860.0,0.00012618]
[1752844908103,1.53215346,118870.0,118860.0,0.00012618]
[1752844908248,1.61791308,118870.0,118860.0,0.00012618]
[1752844908851,1.66791308,118870.0,118860.0,0.00012618]
[1752844911346,1.63591308,118870.0,118860.0,0.00012618]
[1752844914329,1.20377547,118870.0,118860.0,0.00012618]
[1752844914519,1.63591308,118870.0,118860.0,0.00012618]
[1752844914878,1.60471308,118870.0,118860.0,0.00208618]
[1752844915084,1.60471308,118870.0,118860.0,0.06408618]
[1752844915466,1.60471308,118870.0,118860.0,0.03358618]
[1752844915734,1.60471308,118870.0,118860.0,0.00012618]
[1752844917003,1.17257547,118870.0,118860.0,0.00012618]
[1752844917319,1.60471308,118870.0,118860.0,0.00012618]
[1752844917744,1.55471308,118870.0,118860.0,0.00012618]
[1752844919175,0.89368585,118870.0,118860.0,0.06398618]
[1752844919401,1.03140585,118870.0,118860.0,0.06703618]
[1752844920694,1.46354346,118870.0,118860.0,0.06703618]
[1752844921229,1.03140585,118870.0,118860.0,0.06703618]
[1752844921468,1.46354346,118870.0,118860.0,0.06703618]
[1752844922689,1.5127628,118870.0,118860.0,0.06398618]
[1752844923312,1.52116432,118870.0,118860.0,0.06398618]
[1752844923719,1.03980737,118870.0,118860.0,0.06398618]
[1752844923924,1.47194498,118870.0,118860.0,0.06398618]
[1752844924351,1.03980737,118870.0,118860.0,0.06398618]
[1752844924527,1.47194498,118870.0,118860.0,0.06398618]
[1752844925144,1.47409498,118870.0,118860.0,0.06398618]
[1752844925399,1.5598546,118870.0,118860.0,0.06398618]
[1752844926538,1.12771699,118870.0,118860.0,0.06398618]
[1752844926778,1.5598546,118870.0,118860.0,0.06398618]
[1752844927000,1.5628146,118870.0,118860.0,0.06398618]
[1752844929260,1.5598546,118870.0,118860.0,0.06398618]
[1752844930165,1.5628146,118870.0,118860.0,0.06398618]
[1752844930579,1.13067699,118870.0,118860.0,0.06398618]
[1752844930774,1.5628146,118870.0,118860.0,0.06398618]
[1752844930934,1.47705498,118870.0,118860.0,0.06398618]
[1752844931727,1.04491737,118870.0,118860.0,0.06398618]
[1752844931956,1.47705498,118870.0,118860.0,0.06398618]
[1752844932519,1.04491737,118870.0,118860.0,0.06398618]
[1752844932717,1.47409498,118870.0,118860.0,0.06398618]
[1752844932919,1.47194498,118870.0,118860.0,0.06703618]
[1752844933765,1.47409498,118870.0,118860.0,0.06398618]
[1752844935143,1.47705498,118870.0,118860.0,0.06398618]
[1752844938486,1.47409498,118870.0,118860.0,0.06398618]
[1752844938701,1.47194498,118870.0,118860.0,0.06703618]
[1752844939134,1.5577046,118870.0,118860.0,0.06703618]
[1752844940470,1.5577046,118870.0,118860.0,0.06398618]
[1752844940661,1.5630646,118870.0,118860.0,0.06398618]
[1752844941717,1.13092699,118870.0,118860.0,0.06398618]
[1752844941924,1.04195737,118870.0,118860.0,0.06398618]
[1752844942059,1.47409498,118870.0,118860.0,0.06398618]
[1752844942682,1.03980737,118870.0,118860.0,0.06715618]
[1752844943423,0.54092125,118870.0,118860.0,0.70121085]
[1752844943673,0.68390771,118870.0,118860.0,0.06715618]
[1752844943878,0.68390771,118870.0,118860.0,0.23542136]
[1752844944035,0.68390771,118870.0,118860.0,0.24383461]
[1752844944194,0.68366771,118870.0,118860.0,0.25224765]
[1752844945182,0.54618771,118870.0,118860.0,0.26066062]
[1752844945387,0.68366771,118870.0,118860.0,0.26066062]
[1752844945599,0.68266771,118870.0,118860.0,0.26066062]
[1752844945928,0.68266771,118870.0,118860.0,0.26266062]
[1752844946133,0.68266771,118870.0,118860.0,0.27948635]
[1752844946369,0.68166771,118870.0,118860.0,0.27948635]
[1752844946831,0.68166771,118870.0,118860.0,0.28048635]
[1752844947048,0.68166771,118870.0,118860.0,0.27207352]
[1752844947691,0.68166771,118870.0,118860.0,0.25524765]
[1752844948136,0.66484283,118870.0,118860.0,0.07856943]
[1752844948373,0.66484283,118870.0,118860.0,0.2636609]
[1752844948579,0.66484283,118870.0,118860.0,0.25524779]
[1752844948990,0.66484283,118870.0,118860.0,0.2636609]
[1752844949276,0.66484283,118870.0,118860.0,0.07856943]
[1752844949480,0.66484283,118870.0,118860.0,0.23842136]
[1752844949691,0.69111653,118870.0,118860.0,0.24683454]
[1752844949894,0.69111653,118870.0,118860.0,0.25524765]
[1752844950309,0.69111653,118870.0,118860.0,0.26366069]
[1752844950310,0.66484283,118870.0,118860.0,0.26366069]
[1752844950746,0.66484283,118870.0,118860.0,0.25524765]
[1752844950952,0.66484283,118870.0,118860.0,0.23842136]
[1752844951152,0.66484283,118870.0,118860.0,0.25524751]
[1752844952005,0.66484283,118870.0,118860.0,0.26366048]
[1752844952186,0.50500399,118870.0,118860.0,0.28048614]
[1752844952438,0.51341597,118870.0,118860.0,0.28048614]
[1752844952645,0.52182837,118870.0,118860.0,0.28048614]
[1752844952852,0.50500378,118870.0,118860.0,0.28048614]
[1752844953061,0.50500378,118870.0,118860.0,0.71262375]
[1752844953062,0.4965918,118870.0,118860.0,0.71262375]
[1752844953300,0.35071028,118870.0,118860.0,0.7271646]
[1752844953766,0.30287028,118870.0,118860.0,0.7271646]
[1752844953996,0.22287028,118870.0,118860.0,0.7271646]
[1752844954431,0.22287028,118870.0,118860.0,0.7251646]
[1752844954646,0.22287028,118870.0,118860.0,0.7281646]
[1752844954859,0.22287028,118870.0,118860.0,0.81392422]
[1752844955072,0.22287028,118870.0,118860.0,0.81292422]
[1752844955286,0.22287028,118870.0,118860.0,0.7271646]
[1752844955536,0.22287028,118870.0,118860.0,0.7281646]
[1752844955762,0.13736,118870.0,118860.0,1.07655596]
[1752844955990,0.003,118890.0,118860.0,1.07655596]
[1752844956228,0.003,118890.0,118880.0,1.11914676]
[1752844956455,0.14036,118890.0,118880.0,0.68904915]
[1752844956899,0.14036,118890.0,118880.0,0.69221915]
[1752844959451,0.22036,118890.0,118880.0,0.69321915]
[1752844959865,0.22036,118890.0,118880.0,0.69421915]
[1752844960158,0.22036,118890.0,118880.0,0.70957123]
[1752844960621,0.30587028,118890.0,118880.0,0.69421915]
[1752844962034,0.31428077,118890.0,118880.0,0.69421915]
[1752844962258,0.33110212,118890.0,118880.0,0.69421915]
[1752844962488,0.32269134,118890.0,118880.0,0.69421915]
[1752844962903,0.31428077,118890.0,118880.0,0.69421915]
[1752844963122,0.30587028,118890.0,118880.0,0.69421915]
[1752844963355,0.30587028,118890.0,118880.0,0.77997877]
[1752844965510,0.30587028,118890.0,118880.0,0.34784116]
[1752844965719,0.30587028,118890.0,118880.0,0.77997877]
[1752844967779,0.33110248,118890.0,118880.0,0.69421915]
[1752844967993,0.33110234,118890.0,118880.0,0.69421915]
[1752844968200,0.32269156,118890.0,118880.0,0.26208154]
[1752844969198,0.50773619,118890.0,118880.0,0.27662246]
[1752844969415,0.9588328,118890.0,118880.0,0.002]
[1752844969634,1.01225094,118890.0,118880.0,0.002]
[1752844970091,1.01225094,118890.0,118880.0,0.17023687]
[1752844970304,1.01225094,118890.0,118880.0,0.17764871]
[1752844970503,1.01225094,118890.0,118870.0,0.26025036]
[1752844970504,0.18505998,118880.0,118870.0,0.19960972]
[1752844970875,0.26715885,118880.0,118870.0,0.16824428]
[1752844971063,0.26715885,118880.0,118870.0,0.17665683]
[1752844971298,0.26715885,118880.0,118870.0,0.18506931]
[1752844971511,0.26715885,118880.0,118870.0,0.20393376]
[1752844971730,0.26715885,118880.0,118870.0,0.19552164]
[1752844971937,0.28398225,118880.0,118870.0,0.19552164]
[1752844972175,0.27357069,118880.0,118870.0,0.18710931]
[1752844972617,0.26715899,118880.0,118870.0,0.00204]
[1752844972839,0.26715899,118880.0,118870.0,0.17870351]